[Event "*** SCC Grand Prix: Titled Tuesday Blitz"]
[Site "Chess.com"]
[Date "2020.07.21"]
[Round "6"]
[White "viniciusrego"]
[Black "Zhani-Z"]
[Result "0-1"]
[WhiteElo "2271"]
[BlackElo "2425"]
[TimeControl "180+1"]
[EndTime "11:07:24 PDT"]
[Termination "Zhani-Z won by resignation"]

1. d4 {[%clk 0:03:00.9]} 1... Nf6 {[%clk 0:02:56.6]} 2. c4 {[%clk 0:03:00.9]}
2... e6 {[%clk 0:02:55.9]} 3. Nf3 {[%clk 0:03:01]} 3... Bb4+ {[%clk 0:02:48.5]}
4. Bd2 {[%clk 0:02:57.5]} 4... c5 {[%clk 0:02:46.2]} 5. Bxb4 {[%clk 0:02:51.6]}
5... cxb4 {[%clk 0:02:41.8]} 6. g3 {[%clk 0:02:52.5]} 6... d6 {[%clk 0:02:39.3]}
7. Bg2 {[%clk 0:02:48.7]} 7... O-O {[%clk 0:02:37.1]} 8. O-O {[%clk 0:02:44.4]}
8... Nc6 {[%clk 0:02:36.3]} 9. a3 {[%clk 0:02:35.2]} 9... bxa3 {[%clk
0:02:29.8]} 10. Nxa3 {[%clk 0:02:36.1]} 10... e5 {[%clk 0:02:25.7]} 11. dxe5
{[%clk 0:02:25.5]} 11... dxe5 {[%clk 0:02:24.9]} 12. Nb5 {[%clk 0:02:24.5]}
12... Bg4 {[%clk 0:02:22.4]} 13. h3 {[%clk 0:02:15.7]} 13... Bxf3 {[%clk
0:02:08.7]} 14. Bxf3 {[%clk 0:02:16.6]} 14... Qb6 {[%clk 0:02:08.9]} 15. b3
{[%clk 0:01:25.1]} 15... Rad8 {[%clk 0:02:05.4]} 16. Qc2 {[%clk 0:01:18.9]}
16... a6 {[%clk 0:02:04.8]} 17. Bxc6 {[%clk 0:01:18.2]} 17... Qxc6 {[%clk
0:01:59.3]} 18. Na3 {[%clk 0:01:03]} 18... e4 {[%clk 0:01:56.3]} 19. Rad1 {[%clk
0:00:56.3]} 19... e3 {[%clk 0:01:54.4]} 20. fxe3 {[%clk 0:00:38]} 20... Qc5
{[%clk 0:01:49.7]} 21. Qc1 {[%clk 0:00:38.2]} 21... Qe5 {[%clk 0:01:44.3]} 22.
Kg2 {[%clk 0:00:34]} 22... Ne4 {[%clk 0:01:40.5]} 23. Rf3 {[%clk 0:00:31.8]}
23... Ng5 {[%clk 0:01:31.2]} 24. Rff1 {[%clk 0:00:29.3]} 24... Rxd1 {[%clk
0:01:25.6]} 25. Qxd1 {[%clk 0:00:17.3]} 25... Qxe3 {[%clk 0:01:24.3]} 26. Qd3
{[%clk 0:00:15.4]} 26... Qe6 {[%clk 0:01:21.3]} 27. Rf2 {[%clk 0:00:13.3]} 27...
Qxh3+ {[%clk 0:01:20.2]} 28. Kg1 {[%clk 0:00:12.8]} 28... Qe6 {[%clk 0:01:16.7]}
29. Kg2 {[%clk 0:00:11.7]} 29... Qc6+ {[%clk 0:01:14.7]} 30. Kh2 {[%clk
0:00:10.7]} 30... Qc5 {[%clk 0:01:08.3]} 31. Qf5 {[%clk 0:00:10.7]} 31... Qxa3
{[%clk 0:01:04.4]} 32. Qxg5 {[%clk 0:00:10.4]} 32... Qxb3 {[%clk 0:01:04.4]} 33.
Qe7 {[%clk 0:00:09.3]} 33... Qxc4 {[%clk 0:00:57.7]} 34. Qxb7 {[%clk 0:00:09.2]}
34... h6 {[%clk 0:00:55.8]} 35. Qf3 {[%clk 0:00:05.2]} 35... Re8 {[%clk
0:00:55.2]} 36. Kg2 {[%clk 0:00:03.2]} 36... Qe4 {[%clk 0:00:53.6]} 37. Qxe4
{[%clk 0:00:03.6]} 37... Rxe4 {[%clk 0:00:54.5]} 38. Kf1 {[%clk 0:00:04.5]}
38... a5 {[%clk 0:00:54]} 39. Rf5 {[%clk 0:00:04.7]} 39... a4 {[%clk 0:00:49.7]}
40. Ra5 {[%clk 0:00:05.6]} 40... Kf8 {[%clk 0:00:43.5]} 41. Ra7 {[%clk
0:00:04.7]} 41... h5 {[%clk 0:00:40.5]} 42. Kf2 {[%clk 0:00:04.5]} 42... g6
{[%clk 0:00:40.4]} 43. Kf3 {[%clk 0:00:04.1]} 43... f5 {[%clk 0:00:37.3]} 44.
Ra8+ {[%clk 0:00:03.7]} 44... Kf7 {[%clk 0:00:37]} 45. Ra7+ {[%clk 0:00:04.3]}
45... Kf6 {[%clk 0:00:37]} 46. Ra6+ {[%clk 0:00:04.6]} 46... Kg5 {[%clk
0:00:36.2]} 47. e3 {[%clk 0:00:05.2]} 47... Rb4 {[%clk 0:00:35.7]} 48. Ra8
{[%clk 0:00:05]} 48... h4 {[%clk 0:00:35.1]} 49. gxh4+ {[%clk 0:00:04.4]} 49...
Kxh4 {[%clk 0:00:36]} 50. Rh8+ {[%clk 0:00:04.5]} 50... Kg5 {[%clk 0:00:36.5]}
51. Rb8 {[%clk 0:00:05.4]} 51... Rxb8 {[%clk 0:00:31.2]} 0-1

[Event "*** SCC Grand Prix: Titled Tuesday Blitz"]
[Site "Chess.com"]
[Date "2020.07.21"]
[Round "6"]
[White "Juanovic"]
[Black "jamalm2"]
[Result "1-0"]
[WhiteElo "2082"]
[BlackElo "1851"]
[TimeControl "180+1"]
[EndTime "11:07:24 PDT"]
[Termination "Juanovic won by resignation"]

1. e4 {[%clk 0:03:00.9]} 1... e6 {[%clk 0:02:58.3]} 2. d4 {[%clk 0:03:00.1]}
2... b6 {[%clk 0:02:57]} 3. Bd3 {[%clk 0:02:58.1]} 3... Ba6 {[%clk 0:02:56.5]}
4. c4 {[%clk 0:02:56.9]} 4... c5 {[%clk 0:02:54.4]} 5. d5 {[%clk 0:02:56.5]}
5... exd5 {[%clk 0:02:52.3]} 6. exd5 {[%clk 0:02:55.8]} 6... Nf6 {[%clk
0:02:49.8]} 7. Ne2 {[%clk 0:02:40.8]} 7... d6 {[%clk 0:02:41]} 8. O-O {[%clk
0:02:39.9]} 8... Be7 {[%clk 0:02:41]} 9. Nbc3 {[%clk 0:02:37.5]} 9... O-O {[%clk
0:02:40.2]} 10. h3 {[%clk 0:02:33]} 10... Nbd7 {[%clk 0:02:39.9]} 11. Bf4 {[%clk
0:02:32.7]} 11... Nh5 {[%clk 0:02:30.9]} 12. Bh2 {[%clk 0:02:32.3]} 12... g6
{[%clk 0:02:29]} 13. Re1 {[%clk 0:02:31.2]} 13... Ng7 {[%clk 0:02:18.8]} 14. f4
{[%clk 0:02:21.3]} 14... Nf6 {[%clk 0:02:16.5]} 15. Ng3 {[%clk 0:02:17.2]} 15...
Re8 {[%clk 0:02:11.5]} 16. b3 {[%clk 0:02:09.6]} 16... Bc8 {[%clk 0:02:09.2]}
17. Qc2 {[%clk 0:02:08.3]} 17... Bd7 {[%clk 0:02:07.5]} 18. f5 {[%clk
0:02:04.8]} 18... Nfh5 {[%clk 0:02:02]} 19. fxg6 {[%clk 0:01:56.7]} 19... hxg6
{[%clk 0:02:00.9]} 20. Nge4 {[%clk 0:01:36.6]} 20... Nf5 {[%clk 0:01:51]} 21.
Re2 {[%clk 0:01:25.6]} 21... Nd4 {[%clk 0:01:45.1]} 22. Qd2 {[%clk 0:01:25.6]}
22... Nxe2+ {[%clk 0:01:44.2]} 23. Bxe2 {[%clk 0:01:25.8]} 23... Ng7 {[%clk
0:01:41.2]} 24. Nxd6 {[%clk 0:01:24.5]} 24... Bxd6 {[%clk 0:01:40.6]} 25. Bxd6
{[%clk 0:01:25.4]} 25... Bxh3 {[%clk 0:01:33.7]} 26. Bf4 {[%clk 0:01:21]} 26...
Bf5 {[%clk 0:01:30.4]} 27. Bf3 {[%clk 0:01:19.6]} 27... Qf6 {[%clk 0:01:27.7]}
28. Rd1 {[%clk 0:01:12.3]} 28... Rad8 {[%clk 0:01:23.1]} 29. Nb5 {[%clk
0:01:11.5]} 29... Be4 {[%clk 0:01:14.2]} 30. Bg5 {[%clk 0:00:43.9]} 30... Qf5
{[%clk 0:00:56.5]} 31. Bxe4 {[%clk 0:00:25.9]} 31... Qxe4 {[%clk 0:00:49.4]} 32.
Bxd8 {[%clk 0:00:22.6]} 32... Rxd8 {[%clk 0:00:48.9]} 33. Re1 {[%clk 0:00:15.7]}
33... Qg4 {[%clk 0:00:48.4]} 34. Qe2 {[%clk 0:00:14.1]} 34... Nf5 {[%clk
0:00:46.9]} 35. Qxg4 {[%clk 0:00:13.6]} 35... Kg7 {[%clk 0:00:41.4]} 36. d6
{[%clk 0:00:12]} 36... Nxd6 {[%clk 0:00:39.4]} 37. Nxd6 {[%clk 0:00:11.1]} 37...
Rxd6 {[%clk 0:00:38.7]} 38. Qf4 {[%clk 0:00:11.4]} 38... Rf6 {[%clk 0:00:37.6]}
39. Qe5 {[%clk 0:00:11.5]} 39... a5 {[%clk 0:00:35.5]} 40. Rf1 {[%clk
0:00:11.6]} 40... g5 {[%clk 0:00:34.4]} 41. Qxf6+ {[%clk 0:00:12.5]} 41... Kg8
{[%clk 0:00:30]} 42. Qxf7+ {[%clk 0:00:13.4]} 42... Kh8 {[%clk 0:00:21.8]} 43.
Rf6 {[%clk 0:00:14.3]} 1-0

[Event "*** SCC Grand Prix: Titled Tuesday Blitz"]
[Site "Chess.com"]
[Date "2020.07.21"]
[Round "6"]
[White "Khazieva_Elza"]
[Black "Sacbutt"]
[Result "1-0"]
[WhiteElo "2353"]
[BlackElo "2256"]
[TimeControl "180+1"]
[EndTime "11:07:25 PDT"]
[Termination "Khazieva_Elza won by resignation"]

1. e4 {[%clk 0:03:00.9]} 1... c5 {[%clk 0:02:59.4]} 2. Nf3 {[%clk 0:03:00.5]}
2... d6 {[%clk 0:03:00]} 3. d3 {[%clk 0:02:59.6]} 3... Nf6 {[%clk 0:02:59.7]} 4.
g3 {[%clk 0:02:59.9]} 4... Nc6 {[%clk 0:03:00]} 5. Bg2 {[%clk 0:03:00.3]} 5...
g6 {[%clk 0:03:00.7]} 6. O-O {[%clk 0:03:00.6]} 6... Bg7 {[%clk 0:03:01.4]} 7.
Re1 {[%clk 0:03:01.3]} 7... O-O {[%clk 0:03:01.3]} 8. e5 {[%clk 0:03:01.7]} 8...
dxe5 {[%clk 0:03:01.2]} 9. Nxe5 {[%clk 0:03:02.6]} 9... Nxe5 {[%clk 0:03:00.9]}
10. Rxe5 {[%clk 0:03:03.5]} 10... Qb6 {[%clk 0:02:53.4]} 11. Nd2 {[%clk
0:02:59.9]} 11... Bg4 {[%clk 0:02:47.9]} 12. Qe1 {[%clk 0:02:56]} 12... Be6
{[%clk 0:02:37.4]} 13. Nc4 {[%clk 0:02:41.9]} 13... Qc7 {[%clk 0:02:25.7]} 14.
Bf4 {[%clk 0:02:39.5]} 14... Qc8 {[%clk 0:02:25.9]} 15. Re2 {[%clk 0:02:04.8]}
15... a5 {[%clk 0:01:40.5]} 16. Nb6 {[%clk 0:01:26.6]} 16... Qd8 {[%clk
0:01:40.2]} 17. Nxa8 {[%clk 0:01:25.7]} 17... Qxa8 {[%clk 0:01:41.1]} 18. Rxe6
{[%clk 0:01:09]} 18... fxe6 {[%clk 0:01:42]} 19. Qxe6+ {[%clk 0:01:09.1]} 19...
Rf7 {[%clk 0:01:42.9]} 20. Re1 {[%clk 0:00:55.3]} 20... Qa6 {[%clk 0:01:36.7]}
21. Qc8+ {[%clk 0:00:46.2]} 21... Rf8 {[%clk 0:01:36.7]} 22. Qxb7 {[%clk
0:00:45.8]} 22... Qxb7 {[%clk 0:01:30.3]} 23. Bxb7 {[%clk 0:00:46.7]} 23... Kf7
{[%clk 0:01:23.8]} 24. b3 {[%clk 0:00:39.3]} 24... e6 {[%clk 0:01:02.5]} 25. Bc7
{[%clk 0:00:34]} 25... Ng4 {[%clk 0:00:52.5]} 26. h3 {[%clk 0:00:21.3]} 26...
Nh6 {[%clk 0:00:52.7]} 27. Bxa5 {[%clk 0:00:20.3]} 27... Bd4 {[%clk 0:00:51.5]}
28. c3 {[%clk 0:00:18.7]} 28... Bf6 {[%clk 0:00:48.6]} 29. g4 {[%clk 0:00:16.1]}
29... g5 {[%clk 0:00:47.8]} 30. Be4 {[%clk 0:00:13.2]} 30... Kg7 {[%clk
0:00:47.3]} 31. Rc1 {[%clk 0:00:11.1]} 31... Nf7 {[%clk 0:00:45.3]} 32. Bb6
{[%clk 0:00:10.8]} 32... Be7 {[%clk 0:00:44.6]} 33. a4 {[%clk 0:00:10.6]} 33...
Nd6 {[%clk 0:00:44.3]} 34. a5 {[%clk 0:00:10.7]} 34... Nxe4 {[%clk 0:00:36.2]}
35. dxe4 {[%clk 0:00:10.6]} 35... Ra8 {[%clk 0:00:37.1]} 36. Ra1 {[%clk
0:00:09.2]} 36... Ra6 {[%clk 0:00:37.7]} 37. Ra4 {[%clk 0:00:08.4]} 37... Bd6
{[%clk 0:00:30.1]} 38. b4 {[%clk 0:00:08.6]} 38... cxb4 {[%clk 0:00:29.1]} 39.
cxb4 {[%clk 0:00:09.5]} 39... Kf6 {[%clk 0:00:22.9]} 40. b5 {[%clk 0:00:09.8]}
40... Ra8 {[%clk 0:00:23.5]} 41. a6 {[%clk 0:00:10.3]} 41... Ke5 {[%clk
0:00:19.8]} 42. a7 {[%clk 0:00:10]} 42... Be7 {[%clk 0:00:17.8]} 43. Bc7+ {[%clk
0:00:08.4]} 43... Bd6 {[%clk 0:00:17.5]} 44. Bxd6+ {[%clk 0:00:07.5]} 44... Kxd6
{[%clk 0:00:18.4]} 45. b6 {[%clk 0:00:07.9]} 45... Kc6 {[%clk 0:00:19]} 46. Rb4
{[%clk 0:00:07.7]} 46... Kb7 {[%clk 0:00:19.4]} 47. f3 {[%clk 0:00:07.4]} 47...
Rc8 {[%clk 0:00:19.5]} 48. Ra4 {[%clk 0:00:07.4]} 48... Rc2 {[%clk 0:00:20.4]}
49. a8=Q+ {[%clk 0:00:07.1]} 49... Kxb6 {[%clk 0:00:19.5]} 50. Qa6+ {[%clk
0:00:07.3]} 1-0

[Event "*** SCC Grand Prix: Titled Tuesday Blitz"]
[Site "Chess.com"]
[Date "2020.07.21"]
[Round "6"]
[White "Andreikka"]
[Black "Oglob71"]
[Result "1-0"]
[WhiteElo "2886"]
[BlackElo "2516"]
[TimeControl "180+1"]
[EndTime "11:07:26 PDT"]
[Termination "Andreikka won by resignation"]

1. a3 {[%clk 0:03:00.9]} 1... d5 {[%clk 0:02:58.4]} 2. Nf3 {[%clk 0:02:57.8]}
2... Nf6 {[%clk 0:02:57.5]} 3. b4 {[%clk 0:02:56.5]} 3... e6 {[%clk 0:02:57.6]}
4. Bb2 {[%clk 0:02:56]} 4... Be7 {[%clk 0:02:58]} 5. e3 {[%clk 0:02:55.7]} 5...
O-O {[%clk 0:02:56.2]} 6. c4 {[%clk 0:02:56.4]} 6... b6 {[%clk 0:02:55.4]} 7.
cxd5 {[%clk 0:02:53.5]} 7... Nxd5 {[%clk 0:02:55.1]} 8. Qc2 {[%clk 0:02:50.8]}
8... Bb7 {[%clk 0:02:53.8]} 9. Bd3 {[%clk 0:02:49.1]} 9... h6 {[%clk 0:02:49]}
10. Bh7+ {[%clk 0:02:49.3]} 10... Kh8 {[%clk 0:02:48.6]} 11. Be4 {[%clk
0:02:49.7]} 11... Bf6 {[%clk 0:02:47.3]} 12. d4 {[%clk 0:02:48.2]} 12... Nd7
{[%clk 0:02:45.4]} 13. Nbd2 {[%clk 0:02:47.8]} 13... c5 {[%clk 0:02:44.4]} 14.
dxc5 {[%clk 0:02:45.9]} 14... bxc5 {[%clk 0:02:44.6]} 15. b5 {[%clk 0:02:46.3]}
15... Rc8 {[%clk 0:02:38.3]} 16. Bd3 {[%clk 0:02:05.2]} 16... N7b6 {[%clk
0:02:33.2]} 17. Bc4 {[%clk 0:01:37.8]} 17... Nxc4 {[%clk 0:02:24.9]} 18. Nxc4
{[%clk 0:01:37.1]} 18... Nb6 {[%clk 0:02:25.4]} 19. Na5 {[%clk 0:01:34.2]} 19...
Bxf3 {[%clk 0:01:56.3]} 20. gxf3 {[%clk 0:01:32.7]} 20... Bxb2 {[%clk
0:01:55.8]} 21. Qxb2 {[%clk 0:01:33.6]} 21... c4 {[%clk 0:01:55.9]} 22. Nc6
{[%clk 0:01:29.2]} 22... Qd5 {[%clk 0:01:49.9]} 23. Rg1 {[%clk 0:01:29.1]} 23...
f6 {[%clk 0:01:39.3]} 24. Ne7 {[%clk 0:00:59.9]} 24... Qxf3 {[%clk 0:01:37.8]}
25. Ng6+ {[%clk 0:00:57.5]} 25... Kg8 {[%clk 0:01:32.8]} 26. Nxf8 {[%clk
0:00:58]} 26... Kxf8 {[%clk 0:01:31.6]} 27. Qd4 {[%clk 0:00:54.5]} 27... c3
{[%clk 0:01:19.1]} 28. Rc1 {[%clk 0:00:53.4]} 28... c2 {[%clk 0:01:18.4]} 29.
Qd6+ {[%clk 0:00:43.2]} 29... Kf7 {[%clk 0:01:18.1]} 30. Qg3 {[%clk 0:00:42.8]}
30... Qxg3 {[%clk 0:00:53.9]} 31. Rxg3 {[%clk 0:00:43.7]} 31... Nd5 {[%clk
0:00:43.5]} 32. Kd2 {[%clk 0:00:23.9]} 32... Nc3 {[%clk 0:00:42.1]} 33. Rg4
{[%clk 0:00:22.4]} 33... f5 {[%clk 0:00:40.6]} 34. Rb4 {[%clk 0:00:17.6]} 34...
Ne4+ {[%clk 0:00:41.1]} 35. Ke1 {[%clk 0:00:16.8]} 35... Rc3 {[%clk 0:00:34.7]}
36. a4 {[%clk 0:00:17]} 36... Kf6 {[%clk 0:00:20.5]} 37. a5 {[%clk 0:00:16.2]}
37... Ra3 {[%clk 0:00:20.2]} 38. b6 {[%clk 0:00:15.7]} 38... axb6 {[%clk
0:00:19.2]} 39. axb6 {[%clk 0:00:16.6]} 39... Nc5 {[%clk 0:00:16.9]} 40. b7
{[%clk 0:00:15.3]} 40... Nd3+ {[%clk 0:00:16.2]} 41. Kd2 {[%clk 0:00:15.7]}
41... Nxb4 {[%clk 0:00:15.8]} 42. b8=Q {[%clk 0:00:14.8]} 42... Rd3+ {[%clk
0:00:16.2]} 43. Ke2 {[%clk 0:00:14.7]} 43... Rb3 {[%clk 0:00:15.6]} 44. Rxc2
{[%clk 0:00:12.1]} 44... Rxe3+ {[%clk 0:00:08.2]} 45. fxe3 {[%clk 0:00:09.4]}
45... Nxc2 {[%clk 0:00:09.1]} 46. Qb2+ {[%clk 0:00:08.4]} 1-0

[Event "*** SCC Grand Prix: Titled Tuesday Blitz"]
[Site "Chess.com"]
[Date "2020.07.21"]
[Round "6"]
[White "MiroVlasenko"]
[Black "penguingm1"]
[Result "1-0"]
[WhiteElo "2745"]
[BlackElo "2918"]
[TimeControl "180+1"]
[EndTime "11:07:27 PDT"]
[Termination "MiroVlasenko won by checkmate"]

1. d4 {[%clk 0:03:00.9]} 1... d5 {[%clk 0:02:59.9]} 2. Bf4 {[%clk 0:02:59.9]}
2... Nf6 {[%clk 0:02:59.9]} 3. e3 {[%clk 0:03:00.5]} 3... e6 {[%clk 0:03:00.3]}
4. Nf3 {[%clk 0:03:00.3]} 4... Bd6 {[%clk 0:03:00.9]} 5. Bg3 {[%clk 0:03:00]}
5... c5 {[%clk 0:03:01.4]} 6. c3 {[%clk 0:03:00.2]} 6... O-O {[%clk 0:03:01.1]}
7. Nbd2 {[%clk 0:02:59.8]} 7... Qc7 {[%clk 0:03:01.5]} 8. Bd3 {[%clk 0:02:58.4]}
8... Nbd7 {[%clk 0:03:01.9]} 9. O-O {[%clk 0:02:56.6]} 9... Bxg3 {[%clk
0:03:01.2]} 10. hxg3 {[%clk 0:02:56.5]} 10... b6 {[%clk 0:03:01.5]} 11. Qe2
{[%clk 0:02:50.7]} 11... Bb7 {[%clk 0:02:52.3]} 12. Rfd1 {[%clk 0:02:45.5]}
12... e5 {[%clk 0:02:49.3]} 13. dxe5 {[%clk 0:02:42]} 13... Nxe5 {[%clk
0:02:50.2]} 14. Nxe5 {[%clk 0:02:40.6]} 14... Qxe5 {[%clk 0:02:51.1]} 15. Nf3
{[%clk 0:02:39.8]} 15... Qe7 {[%clk 0:02:50]} 16. a4 {[%clk 0:02:35.7]} 16...
Rad8 {[%clk 0:02:49.7]} 17. a5 {[%clk 0:02:34.5]} 17... h6 {[%clk 0:02:36.2]}
18. axb6 {[%clk 0:02:31.9]} 18... axb6 {[%clk 0:02:37.1]} 19. Ra7 {[%clk
0:02:30.2]} 19... Rd7 {[%clk 0:02:37.4]} 20. Rda1 {[%clk 0:02:26]} 20... Rfd8
{[%clk 0:02:33.6]} 21. Bb5 {[%clk 0:02:12.2]} 21... Rc7 {[%clk 0:02:32.9]} 22.
Ba6 {[%clk 0:02:08.4]} 22... Ne4 {[%clk 0:02:20]} 23. Bxb7 {[%clk 0:01:59.6]}
23... Rxb7 {[%clk 0:02:20.9]} 24. Ra8 {[%clk 0:01:59.2]} 24... Rd7 {[%clk
0:02:17.8]} 25. Qb5 {[%clk 0:01:55.4]} 25... Rd6 {[%clk 0:02:13.2]} 26. Rxd8+
{[%clk 0:01:45.4]} 26... Qxd8 {[%clk 0:02:13.5]} 27. Ra7 {[%clk 0:01:43.4]}
27... Re6 {[%clk 0:01:44.9]} 28. Qa6 {[%clk 0:01:36]} 28... Qf6 {[%clk
0:01:36.3]} 29. Qc8+ {[%clk 0:01:24.4]} 29... Kh7 {[%clk 0:01:34.7]} 30. Ra8
{[%clk 0:01:24.5]} 30... Kg6 {[%clk 0:01:16.7]} 31. Qd7 {[%clk 0:01:09.5]} 31...
Ng5 {[%clk 0:00:36.3]} 32. Qxd5 {[%clk 0:00:37.7]} 32... Rd6 {[%clk 0:00:34.9]}
33. Qb7 {[%clk 0:00:21.5]} 33... Rd1+ {[%clk 0:00:30.1]} 34. Kh2 {[%clk
0:00:21.7]} 34... Nxf3+ {[%clk 0:00:26.3]} 35. gxf3 {[%clk 0:00:20.6]} 35... Qf5
{[%clk 0:00:18.9]} 36. Kg2 {[%clk 0:00:20.4]} 36... Qb1 {[%clk 0:00:07]} 37.
Qe4+ {[%clk 0:00:19.6]} 37... Qxe4 {[%clk 0:00:06.5]} 38. fxe4 {[%clk
0:00:20.5]} 38... Rd2 {[%clk 0:00:05]} 39. Ra2 {[%clk 0:00:20.2]} 39... b5
{[%clk 0:00:05.1]} 40. Kf3 {[%clk 0:00:19.8]} 40... f6 {[%clk 0:00:04.9]} 41. g4
{[%clk 0:00:20.1]} 41... b4 {[%clk 0:00:05]} 42. cxb4 {[%clk 0:00:20.1]} 42...
cxb4 {[%clk 0:00:05.9]} 43. e5 {[%clk 0:00:18.4]} 43... fxe5 {[%clk 0:00:04.8]}
44. Ra6+ {[%clk 0:00:18.5]} 44... Kh7 {[%clk 0:00:03.3]} 45. b3 {[%clk
0:00:18.2]} 45... Rb2 {[%clk 0:00:03.1]} 46. Ke4 {[%clk 0:00:18.3]} 46... Rxb3
{[%clk 0:00:02.2]} 47. Kxe5 {[%clk 0:00:18.7]} 47... Rb1 {[%clk 0:00:03]} 48. f4
{[%clk 0:00:18.7]} 48... b3 {[%clk 0:00:03.9]} 49. Rb6 {[%clk 0:00:19.2]} 49...
b2 {[%clk 0:00:04.4]} 50. e4 {[%clk 0:00:19.5]} 50... Kg8 {[%clk 0:00:03.9]} 51.
Kf5 {[%clk 0:00:19]} 51... Kh7 {[%clk 0:00:03.5]} 52. Rb7 {[%clk 0:00:19]} 52...
Kg8 {[%clk 0:00:03.2]} 53. Kg6 {[%clk 0:00:19.1]} 53... Rg1 {[%clk 0:00:03.6]}
54. Rb8# {[%clk 0:00:18.7]} 1-0

[Event "*** SCC Grand Prix: Titled Tuesday Blitz"]
[Site "Chess.com"]
[Date "2020.07.21"]
[Round "6"]
[White "checkmatequen"]
[Black "Agnes66678"]
[Result "1-0"]
[WhiteElo "2318"]
[BlackElo "2463"]
[TimeControl "180+1"]
[EndTime "11:07:28 PDT"]
[Termination "checkmatequen won by resignation"]

1. e4 {[%clk 0:03:00.9]} 1... e5 {[%clk 0:02:57.3]} 2. Nf3 {[%clk 0:02:59.8]}
2... Nf6 {[%clk 0:02:56.8]} 3. d4 {[%clk 0:02:58.3]} 3... Nxe4 {[%clk
0:02:55.5]} 4. dxe5 {[%clk 0:02:58.3]} 4... d5 {[%clk 0:02:55.4]} 5. Nbd2 {[%clk
0:02:58.9]} 5... Be7 {[%clk 0:02:51.9]} 6. Bd3 {[%clk 0:02:55.8]} 6... Nc5
{[%clk 0:02:51.1]} 7. O-O {[%clk 0:02:45.1]} 7... O-O {[%clk 0:02:49.7]} 8. Re1
{[%clk 0:02:16.7]} 8... Nbd7 {[%clk 0:02:46]} 9. Nf1 {[%clk 0:02:14.5]} 9...
Nxd3 {[%clk 0:02:44]} 10. Qxd3 {[%clk 0:02:15.4]} 10... c6 {[%clk 0:02:43.7]}
11. Ng3 {[%clk 0:02:15.7]} 11... Nc5 {[%clk 0:02:43.7]} 12. Qe2 {[%clk
0:02:10.1]} 12... a5 {[%clk 0:02:36.5]} 13. Nd4 {[%clk 0:02:10.1]} 13... Be6
{[%clk 0:02:13.7]} 14. Ngf5 {[%clk 0:02:05.4]} 14... Qd7 {[%clk 0:02:08.3]} 15.
Qg4 {[%clk 0:02:01.7]} 15... g6 {[%clk 0:02:03.3]} 16. Nxe6 {[%clk 0:02:01.1]}
16... Qxe6 {[%clk 0:01:59.2]} 17. Nxe7+ {[%clk 0:02:01.3]} 17... Qxe7 {[%clk
0:01:59.3]} 18. Bg5 {[%clk 0:02:01.6]} 18... Qe6 {[%clk 0:01:58.1]} 19. Qh4
{[%clk 0:02:02]} 19... h5 {[%clk 0:01:53.5]} 20. Re3 {[%clk 0:02:00.4]} 20...
Ne4 {[%clk 0:01:50.4]} 21. Rxe4 {[%clk 0:01:48.9]} 21... dxe4 {[%clk 0:01:49.4]}
22. Bf6 {[%clk 0:01:49.2]} 22... Qf5 {[%clk 0:01:45.3]} 23. Re1 {[%clk
0:01:49.7]} 23... Rfe8 {[%clk 0:01:42.4]} 24. Rxe4 {[%clk 0:01:46.1]} 24... Re6
{[%clk 0:01:35.3]} 25. h3 {[%clk 0:01:34.9]} 25... Rxf6 {[%clk 0:01:15.4]} 26.
exf6 {[%clk 0:01:33.2]} 26... Rd8 {[%clk 0:01:14.1]} 27. Kh2 {[%clk 0:01:25.5]}
27... Rd6 {[%clk 0:01:07.9]} 28. Rf4 {[%clk 0:01:12.4]} 28... Qe5 {[%clk
0:01:07.4]} 29. g3 {[%clk 0:01:09.5]} 29... Kh7 {[%clk 0:00:47.3]} 30. c3 {[%clk
0:01:04.9]} 30... Kh6 {[%clk 0:00:41.7]} 31. Rf3 {[%clk 0:00:32.3]} 31... Rd2
{[%clk 0:00:23.7]} 32. Kg2 {[%clk 0:00:20.4]} 32... Rxb2 {[%clk 0:00:19.2]} 33.
Qc4 {[%clk 0:00:20.5]} 33... Qd5 {[%clk 0:00:15.6]} 34. Qf4+ {[%clk 0:00:19]}
34... g5 {[%clk 0:00:15.8]} 35. Qe3 {[%clk 0:00:15.5]} 35... Rd2 {[%clk
0:00:13.2]} 36. Qe8 {[%clk 0:00:10.1]} 36... Rxf2+ {[%clk 0:00:06.6]} 37. Kxf2
{[%clk 0:00:09.7]} 37... Qd2+ {[%clk 0:00:07.5]} 38. Qe2 {[%clk 0:00:09.7]}
38... Qd5 {[%clk 0:00:06.6]} 39. h4 {[%clk 0:00:08]} 39... g4 {[%clk 0:00:06.2]}
40. Qe3+ {[%clk 0:00:06.6]} 40... Kh7 {[%clk 0:00:06.3]} 41. Qd3+ {[%clk
0:00:05.9]} 41... Qxd3 {[%clk 0:00:06.5]} 42. Rxd3 {[%clk 0:00:06.8]} 42... Kg6
{[%clk 0:00:07.2]} 43. Rd7 {[%clk 0:00:07.3]} 43... Kxf6 {[%clk 0:00:08.1]} 44.
Rxb7 {[%clk 0:00:07.3]} 44... a4 {[%clk 0:00:08.8]} 45. Ra7 {[%clk 0:00:07.6]}
45... Ke5 {[%clk 0:00:09.4]} 46. Rxa4 {[%clk 0:00:08.1]} 46... Kd5 {[%clk
0:00:10.3]} 47. Ke3 {[%clk 0:00:08.4]} 47... c5 {[%clk 0:00:10.7]} 48. c4+
{[%clk 0:00:08.5]} 48... Ke5 {[%clk 0:00:10.6]} 49. Ra6 {[%clk 0:00:08.9]} 49...
f5 {[%clk 0:00:11.5]} 50. a4 {[%clk 0:00:08.6]} 50... f4+ {[%clk 0:00:11.8]} 51.
gxf4+ {[%clk 0:00:08.9]} 51... Kf5 {[%clk 0:00:12.7]} 52. Rh6 {[%clk 0:00:09.1]}
1-0